Cogmind - Beta 13 @@@ ROGUE MODE // 2024.04.29 @ 18:06:25 Player: Zaros426 Result: Destroyed by S-27 Virus via exploding Nuclear Reactor Performance ------------- Evolutions (3) 1500 Regions Visited (7) 1400 Robots Destroyed (110) 550 Value Destroyed (3469) 3469 Prototype IDs (28) 560 Alien Tech Used (0) 0 Bonus (243) 243 TOTAL SCORE: 7722 Bonus ------- High Alert Combat Kills 511 Follower Combat Kills 21 Friendly Fire -289 Cogmind --------- Core Integrity 0/700 Matter 55/300 Energy 100/100 System Corruption 22% Temperature Cool (0) Movement Core (100) Ox1 Location -7/Factory Parts ------- > --- POWER (1) -------- (None) > --- PROPULSION (3) --- (None) > --- UTILITY (6) ------ (None) > --- WEAPON (3) ------- Great Maul > --- INVENTORY (5) ---- Large Storage Unit Improved Melee Analysis Suite Core Analyzer Reaction Control System Peak State ------------ > --- POWER ------------ Nuclear Core > --- PROPULSION ------- Medium Treads Medium Treads Medium Treads > --- UTILITY ---------- Large Storage Unit Advanced Targeting Computer Hardened Heavy Armor Plating Hardened Heavy Armor Plating > --- WEAPON ----------- Lightning Gun Mini Grenade Launcher Heavy Mace > --- INVENTORY -------- Nuclear Core Medium Treads Improved Heat Sink Improved Terrain Scanner Advanced ECM Suite Hardened Heavy Armor Plating Hardened Heavy Armor Plating Improved Light Armor Plating Insulated Plating Insulated Plating Power Bank Mini Grenade Launcher Scythe [Rating: 49] Favorites ----------- Power Nuclear Core Engine Light Deuterium Engine Power Core Nuclear Core Propulsion Wheel Treads Improved Treads Leg Aluminum Leg Wheel Wheel Utility Large Storage Unit Device Seismic Detector Storage Large Storage Unit Processor Advanced Targeting Computer Hackware Makeshift System Shield Protection Medium Armor Plating Weapon Rocket Launcher Energy Gun Heavy Particle Gun Ballistic Gun Assault Rifle Launcher Rocket Launcher Impact Weapon Heavy Mace Slashing Weapon Makeshift Sword Build | -11 -10 -10 -10 -8 -7 -7 -7 ------- Run | Yrd Mat Min Sub Mat Fac Was Fac Slots Evolved 6 | . . . . 4 2 . . Power . | . . . . . . . . Propulsion 1 | . . . . . 1 . . Utility 4 | . . . . 3 1 . . Weapon 1 | . . . . 1 . . . Parts Attached 117 | 6 11 14 7 64 6 6 3 Power 11 | 1 1 2 1 6 . . . Engine 6 | 1 1 1 1 2 . . . Core 5 | . . 1 . 4 . . . Reactor . | . . . . . . . . Propulsion 27 | 2 2 6 2 11 1 3 . Treads 15 | 2 . . 1 8 1 3 . Leg 4 | . 2 1 1 . . . . Wheel 8 | . . 5 . 3 . . . Hover . | . . . . . . . . Flight . | . . . . . . . . Utility 36 | 2 5 1 1 23 1 2 1 Device 4 | 1 . . . 3 . . . Storage 3 | 1 2 . . . . . . Processor 4 | . 1 . . 3 . . . Hackware 2 | . . . . 2 . . . Protection 23 | . 2 1 1 15 1 2 1 Artifact . | . . . . . . . . Weapon 43 | 1 3 5 3 24 4 1 2 Energy Gun 4 | . 1 . . 2 1 . . Energy Cannon . | . . . . . . . . Ballistic Gun 15 | 1 2 3 . 9 . . . Ballistic Cannon . | . . . . . . . . Launcher 12 | . . 2 2 6 1 1 . Special Weapon . | . . . . . . . . Impact Weapon 7 | . . . . 3 2 . 2 Slashing Weapon 5 | . . . 1 4 . . . Piercing Weapon . | . . . . . . . . Special Melee Weapon . | . . . . . . . . Unidentified Prototypes 4 | . . . . 4 . . . Parts Lost 30 | . 2 . 6 17 . 4 1 Power 3 | . . . 1 2 . . . Propulsion 8 | . 1 . 2 3 . 2 . Utility 11 | . . . 1 8 . 1 1 Weapon 8 | . 1 . 2 4 . 1 . Highest Loss Streak 6 | . 2 . 4 6 . 4 1 To Critical Strikes . | . . . . . . . . Average Slot Usage (%) 92 | . 97 100 94 93 84 56 6 Engine 6 | . 14 4 11 4 . . . Core 4 | . . 9 2 4 7 4 . Treads 10 | . 19 . 7 15 23 14 . Leg 4 | . 7 5 11 . . . . Wheel 6 | . . 22 5 1 . . . Device 1 | . 7 . . 2 . . . Storage 11 | . 14 14 14 9 7 4 . Processor 3 | . 1 . . 8 7 4 . Hackware 4 | . . . . 12 . . . Protection 10 | . 4 14 13 9 15 10 5 Ballistic Gun 10 | . 25 16 . 10 . . . Launcher 9 | . . 11 25 3 11 10 . Impact Weapon 1 | . . . . 3 7 4 . Slashing Weapon 2 | . . . 1 6 1 . . Naked Turns 92 | . . . . . . 70 22 Heaviest Build 75 | 11 36 40 40 58 75 72 3 Greatest Support 84 | 40 40 30 20 56 84 84 3 Greatest Overweight (x) 7 | 1 1 3 3 5 . 7 . Average Overweight (x) . | . . 1 1 . . . . Largest Inventory Capacity 15 | 8 15 15 15 15 15 15 5 Average Capacity 14 | 7 14 15 15 15 15 11 5 Most Carried 15 | 4 15 15 15 15 15 15 5 Average Carried 12 | 1 10 14 10 13 14 10 4 Final Capacity 15 | 8 15 15 15 15 15 5 5 Final Carried 15 | 4 15 14 15 15 15 1 4 Class Distribution -------------------- 71% | Mutant 16% | Hacker-Mutant 9% | Gunner Dominant Class ---------------- Mutant | -10/Materials Mutant | -10/Mines Mutant | -10/Subcaves Hacker-Mutant | -8/Materials Mutant | -7/Factory Mutant | -7/Waste Mutant | -7/Factory Resources | -11 -10 -10 -10 -8 -7 -7 -7 ----------- Run | Yrd Mat Min Sub Mat Fac Was Fac Matter Collected 3244 | 308 324 605 251 1573 155 . 28 Remotely . | . . . . . . . . Salvage Created 4016 | 110 655 126 116 2374 384 221 30 Parts 212 | 6 53 9 14 118 12 . . Haulers Intercepted 4 | . . . . 4 . . . Recyclers Shooed 2 | 1 . . . 1 . . . Parts Field Recycled . | . . . . . . . . Retrieved Matter . | . . . . . . . . Parts Self-Destructed . | . . . . . . . . Prevented . | . . . . . . . . Kills | -11 -10 -10 -10 -8 -7 -7 -7 ------- Run | Yrd Mat Min Sub Mat Fac Was Fac Combat Hostiles Destroyed 100 | . 16 13 11 53 5 1 1 Melee 17 | . . . . 16 . . 1 Guns 46 | . 16 1 . 28 1 . . AOE 35 | . . 12 11 7 4 1 . Classes Destroyed 17 | 2 4 1 2 6 1 1 . Worker 4 | . . . . 3 1 . . Builder 4 | . 1 1 . 2 . . . Tunneler 4 | 2 . 1 . 1 . . . Hauler 4 | . . . . 4 . . . Recycler 4 | 1 . . . 1 2 . . Watcher 6 | . 3 . . 3 . . . Swarmer 18 | . 3 . 4 10 . . 1 Grunt 44 | . 13 1 . 27 3 . . Brawler 3 | . . . . 3 . . . Duelist 1 | . . . . 1 . . . Sentry 7 | . . . . 6 1 . . Specialist 6 | . . . . 6 . . . Hunter 1 | . . . . . 1 . . Compactor 1 | . . . . . . 1 . Artisan 1 | . . . 1 . . . . Subdweller 7 | . . . 7 . . . . Assembled 13 | . . 13 . . . . . Best Kill Streak 8 | 2 5 6 8 7 5 1 1 Combat Bots Only 8 | . 5 6 8 7 3 1 1 Max Kills in Single Turn 4 | 1 2 2 3 2 4 1 1 Gunslinging 1 | . 1 . . . . . . Exploded 3 | . . 2 3 2 2 1 . Melee 1 | . . . . 1 . . 1 Uniques/NPCs Destroyed . | . . . . . . . . Combat | -11 -10 -10 -10 -8 -7 -7 -7 -------- Run | Yrd Mat Min Sub Mat Fac Was Fac Hostile Shots Fired 758 | . 66 17 61 370 161 15 68 Missed 219 | . 13 3 28 94 56 . 25 Damage Taken 8052 | . 606 326 556 4153 824 873 714 Core 1425 | . 59 20 111 529 103 126 477 Absorbed by Shields . | . . . . . . . . Ignored by Resistances 6 | . . . . 6 . . . Core Remaining (%) 42 | 100 . . 24 3 . . . Volleys Fired 280 | 16 58 35 16 134 12 9 . Largest 3 | 1 2 2 2 3 2 2 . Hottest 105 | 20 70 53 66 105 60 60 . Shots Fired 451 | 16 113 39 33 215 17 18 . Gun 356 | 16 113 14 . 206 7 . . Cannon . | . . . . . . . . Launcher 95 | . . 25 33 9 10 18 . Special . | . . . . . . . . Kinetic 313 | 16 99 14 . 184 . . . Thermal 36 | . 14 . . 22 . . . Explosive 95 | . . 25 33 9 10 18 . Electromagnetic 7 | . . . . . 7 . . Robot Hit Streak 18 | 6 12 4 6 18 7 11 . Robot Miss Streak 7 | 1 4 5 1 7 1 1 . Penetration Max . | . . . . . . . . Secondary Targets 7 | . 5 . . 2 . . . Max Gunslinging Chain 1 | . 1 . . 1 . . . Shots Hit Robots 368 | 12 73 10 19 216 22 14 2 Core Hits 228 | 4 36 25 21 111 15 15 1 Critical Kills 3 | . . 1 . 2 . . . Critical Parts Destroyed 4 | . . 1 . 2 . . 1 Critical Strikes 13 | . . 2 . 10 . . 1 Burn 1 | . . . . 1 . . . Destroy 4 | . . 2 . 2 . . . Smash 3 | . . . . 2 . . 1 Sever 5 | . . . . 5 . . . Melee Attacks 146 | . . . 7 124 12 . 3 Impact 35 | . . . . 20 12 . 3 Slashing 111 | . . . 7 104 . . . Piercing . | . . . . . . . . Sneak Attacks 7 | . . . 2 4 1 . . Combat Hostiles . | . . . . . . . . Follow-up Attacks 10 | . . . . 8 2 . . Damage Inflicted 14090 | 145 980 767 1696 6061 838 3470 133 Guns 4309 | 145 980 74 . 3009 101 . . Cannons . | . . . . . . . . Explosions 6921 | . . 678 1553 847 373 3470 . Melee 2791 | . . . 143 2187 364 . 97 Ramming 69 | . . 15 . 18 . . 36 Kinetic 3844 | 145 903 74 . 2722 . . . Thermal 482 | . 77 . . 405 . . . Explosive 6803 | . . 678 1553 729 373 3470 . Electromagnetic 101 | . . . . . 101 . . Impact 814 | . . . . 353 364 . 97 Slashing 1977 | . . . 143 1834 . . . Piercing . | . . . . . . . . Highest Corruption 22 | . 2 2 5 1 . 20 22 Average Corruption 3 | . 2 2 4 1 . 8 20 Corruption Purged . | . . . . . . . . Corruption Blocked . | . . . . . . . . Effects 76 | . 2 24 31 3 . 8 8 Message Errors 14 | . 1 2 9 . . . 2 Matter Fused 19 | . . 10 4 . . 3 2 Heat Flow Errors 12 | . 1 3 5 . . 2 1 Energy Discharges 15 | . . 2 10 1 . 1 1 Parts Fused 1 | . . . 1 . . . . Data Loss (minor) 7 | . . 3 1 1 . 1 1 Misfires 1 | . . . 1 . . . . Alerts 4 | . . 4 . . . . . Misdirections 2 | . . . . . . 1 1 Weapon Failures 1 | . . . . 1 . . . Overload Shots . | . . . . . . . . Overflow Damage 539 | . . 23 122 307 28 . 59 Projectiles . | . . . . . . . . Explosions 72 | . . 23 49 . . . . Melee 467 | . . . 73 307 28 . 59 Knockbacks 7 | . . 1 . 4 1 . 1 Impact 7 | . . 1 . 4 1 . 1 Kinetic . | . . . . . . . . Secondary . | . . . . . . . . Self-Inflicted Damage 616 | . . 90 90 143 . 278 15 Shots 18 | . . 3 3 4 . 8 . Rammed 15 | . . 2 . 2 . . 11 Targets Rammed 15 | . . 2 . 2 . . 11 Kicked . | . . . . . . . . Crushed . | . . . . . . . . Highest Temperature 402 | . 242 292 208 402 340 388 221 Average Temperature 92 | . 25 76 95 83 140 124 119 Received Heat Transfer 2169 | . 339 . 132 1458 234 . 6 Effects 3 | . . . . 2 1 . . Shutdowns 1 | . . . . 1 . . . Energy Bleed 1 | . . . . 1 . . . Interference 1 | . . . . . 1 . . Siege Activations . | . . . . . . . . Robots Corrupted . | . . . . . . . . Combat Hostiles . | . . . . . . . . Parts Fried 8 | . . . . 6 1 . 1 Impact Corruptions 10 | . . . . 5 3 . 2 Robots Melted . | . . . . . . . . Combat Hostiles . | . . . . . . . . Parts Melted 2 | . . . . 2 . . . Heat Transferred 951 | . 222 . . 729 . . . Parts Sabotaged . | . . . . . . . . Parts Stolen . | . . . . . . . . Parts Stripped . | . . . . . . . . Power Chain Reactions . | . . . . . . . . Alert | -11 -10 -10 -10 -8 -7 -7 -7 ------- Run | Yrd Mat Min Sub Mat Fac Was Fac Peak Influence 1060 | 15 299 205 . 1060 619 231 203 Initial 482 | . 9 60 . 306 482 166 133 Average 282 | 5 126 71 . 475 512 190 143 Maximum Alert Level 3 | . 1 1 . 3 2 1 1 Low Security (%) 56 | 100 84 98 . 19 . 73 97 Level 1 13 | . 15 1 . 23 . 26 2 Level 2 19 | . . . . 30 100 . . Level 3 10 | . . . . 26 . . . Level 4 . | . . . . . . . . Level 5 . | . . . . . . . . High Security . | . . . . . . . . Max Security . | . . . . . . . . Sterilizations 1 | . . . . 1 . . . Squads Dispatched 21 | . 4 . . 14 2 . 1 Investigation 9 | . 3 . . 5 1 . . Extermination 1 | . . . . . 1 . . Reinforcement 9 | . 1 . . 7 . . 1 Assault 2 | . . . . 2 . . . Garrison . | . . . . . . . . Intercept . | . . . . . . . . Searches Triggered . | . . . . . . . . Construction Impeded 1 | . . . . 1 . . . Haulers Reinforced . | . . . . . . . . Active Scanning Responses . | . . . . . . . . Cargo Convoy Interrupts . | . . . . . . . . Stealth | -11 -10 -10 -10 -8 -7 -7 -7 --------- Run | Yrd Mat Min Sub Mat Fac Was Fac Distress Signals . | . . . . . . . . Communications Jammed . | . . . . . . . . Distress Signals . | . . . . . . . . Times Spotted 191 | . 27 23 33 88 6 6 8 Peak Tracking Total 7 | . 3 6 6 5 3 6 7 Tactical Retreats 20 | . . 3 4 12 . . 1 Traps | -11 -10 -10 -10 -8 -7 -7 -7 ------- Run | Yrd Mat Min Sub Mat Fac Was Fac Traps Triggered 6 | . 1 . . 3 1 . 1 Indirectly . | . . . . . . . . Trap Hack Attempts . | . . . . . . . . Triggered . | . . . . . . . . Disarmed . | . . . . . . . . Reprogrammed . | . . . . . . . . Reused . | . . . . . . . . Traps Extracted . | . . . . . . . . Installed . | . . . . . . . . Triggered . | . . . . . . . . Machines | -11 -10 -10 -10 -8 -7 -7 -7 ---------- Run | Yrd Mat Min Sub Mat Fac Was Fac Machines Disabled 21 | . 1 12 4 4 . . . Max in Single Turn 3 | . 1 3 3 1 . . . Garrison Access 1 | . . . . 1 . . . Machines Repaired . | . . . . . . . . Machines Dismantled . | . . . . . . . . Machines Sabotaged . | . . . . . . . . Overloaded Fab Kills . | . . . . . . . . Hacking | -11 -10 -10 -10 -8 -7 -7 -7 --------- Run | Yrd Mat Min Sub Mat Fac Was Fac Machines Accessed 25 | . 6 . 1 13 2 . 3 Terminals 17 | . 6 . . 9 . . 2 Fabricators 1 | . . . . . 1 . . Repair Stations . | . . . . . . . . Recycling Units 3 | . . . . 1 1 . 1 Scanalyzers 2 | . . . . 2 . . . Garrison Access 1 | . . . . 1 . . . Total Hacks 117 | . 21 . 9 79 3 . 5 Successful 58 | . 6 . 9 38 1 . 4 Failed 59 | . 15 . . 41 2 . 1 Catastrophic 9 | . 2 . . 6 1 . . Database Lockouts . | . . . . . . . . Manual 54 | . 20 . . 31 2 . 1 Terminals 92 | . 21 . . 67 . . 4 Fabricators 1 | . . . . . 1 . . Repair Stations . | . . . . . . . . Recycling Units 5 | . . . . 2 2 . 1 Scanalyzers 9 | . . . . 9 . . . Garrison Access 1 | . . . . 1 . . . Terminal Hacks 42 | . 5 . 9 25 . . 3 Record 10 | . . . 8 2 . . . Robot Analysis 8 | . 4 . . 4 . . . Prototype ID Bank 7 | . . . . 6 . . 1 Open DSF 1 | . . . . . . . 1 Branch Access Points 2 | . 1 . . 1 . . . Alert Level 5 | . . . . 4 . . 1 Unreport Threat 3 | . . . . 3 . . . Dispatch Records 1 | . . . . 1 . . . Recall Investigation 1 | . . . . 1 . . . Recall Reinforcements 1 | . . . . 1 . . . Hauler Manifests 1 | . . . . 1 . . . Zone Layout 1 | . . . . 1 . . . Derelict Proto ID Bank 1 | . . . 1 . . . . Fabricator Hacks . | . . . . . . . . Repair Station Hacks . | . . . . . . . . Recycling Unit Hacks 2 | . . . . 1 . . 1 Report Inventory 1 | . . . . 1 . . . Retrieve Components 1 | . . . . . . . 1 Scanalyzer 8 | . . . . 8 . . . Insert Component 4 | . . . . 4 . . . Analyze 4 | . . . . 4 . . . Garrison Access Hacks 1 | . . . . 1 . . . Seal Access 1 | . . . . 1 . . . Unauthorized Hacks 5 | . 1 . . 3 1 . . Terminals 3 | . 1 . . 2 . . . Track 1 | . . . . 1 . . . Botnet 2 | . 1 . . 1 . . . Fabricators . | . . . . . . . . Repair Stations . | . . . . . . . . Recycling Units 2 | . . . . 1 1 . . Tunnel 2 | . . . . 1 1 . . Scanalyzers . | . . . . . . . . Garrison Access . | . . . . . . . . Data Cores Recovered . | . . . . . . . . Used . | . . . . . . . . Hacking Detections 20 | . 6 . . 10 1 . 3 Full Trace Events 7 | . 4 . . 3 . . . Feedback Events . | . . . . . . . . Feedback Blocked . | . . . . . . . . Robot Schematics Acquired . | . . . . . . . . Robots Built . | . . . . . . . . Authchips . | . . . . . . . . Time . | . . . . . . . . Total Robot Build Rating . | . . . . . . . . Part Schematics Acquired 3 | . . . . 3 . . . Parts Built . | . . . . . . . . Authchips . | . . . . . . . . Time . | . . . . . . . . Total Part Build Rating . | . . . . . . . . Parts Repaired . | . . . . . . . . Time . | . . . . . . . . Parts Recycled . | . . . . . . . . Recycled Matter . | . . . . . . . . Retrieved Matter . | . . . . . . . . Retrieved Components 4 | . . . . . . . 4 Parts Scanalyzed 4 | . . . . 4 . . . Part Schematics Acquired 3 | . . . . 3 . . . Parts Damaged . | . . . . . . . . Bothacking | -11 -10 -10 -10 -8 -7 -7 -7 ------------ Run | Yrd Mat Min Sub Mat Fac Was Fac Used RIF Installer . | . . . . . . . . Robots Hacked . | . . . . . . . . Non-combat . | . . . . . . . . Combat . | . . . . . . . . Robot Hacks Applied . | . . . . . . . . Relay Couplers Released . | . . . . . . . . Fabnet Peak Effective % . | . . . . . . . . Robots Rewired . | . . . . . . . . Allies Hacked . | . . . . . . . . Hacks Repelled . | . . . . . . . . Allies | -11 -10 -10 -10 -8 -7 -7 -7 -------- Run | Yrd Mat Min Sub Mat Fac Was Fac Total Allies 3 | . . 3 . . . . . Largest Group 3 | . . 3 2 . . . . Highest-Rated Group 40 | . . 40 32 . . . . Highest-Rated Ally 16 | . . 16 16 . . . . Total Orders . | . . . . . . . . Ally Attacks 18 | . . 12 6 . . . . Total Damage 128 | . . 114 14 . . . . Kills 4 | . . 4 . . . . . Allies Corrupted . | . . . . . . . . Allies Melted . | . . . . . . . . Intel | -11 -10 -10 -10 -8 -7 -7 -7 ------- Run | Yrd Mat Min Sub Mat Fac Was Fac Robot Analysis Total 8 | . 4 . . 4 . . . Derelict Logs Recovered 2 | . . 1 1 . . . . Drone Launches . | . . . . . . . . Drone Recoveries . | . . . . . . . . Exploration | -11 -10 -10 -10 -8 -7 -7 -7 ------------- Run | Yrd Mat Min Sub Mat Fac Was Fac Turns Passed 8911 | 98 1168 2107 1545 3016 532 229 216 Spaces Moved 5404 | 36 535 1844 904 1235 284 203 363 Core 501 | 4 . . . . . 134 363 Treads 1835 | 32 379 . . 1071 284 69 . Legs 996 | . 156 211 629 . . . . Wheels 2072 | . . 1633 275 164 . . . Hover . | . . . . . . . . Flight . | . . . . . . . . Fastest Speed 50 | 50 160 95 95 110 160 50 50 Average Speed 137 | 150 174 105 161 178 160 91 50 Slowest Speed 400 | 160 240 190 190 305 160 400 50 Overloaded Moves . | . . . . . . . . Propulsion Burnouts . | . . . . . . . . Robots Hopped . | . . . . . . . . Cave-ins Triggered 1 | . . . 1 . . . . Exploration Rate (%) 56 | 4 93 102 46 89 11 98 10 Regions Visited 7 Branch Regions 2 Pre-discovered Areas 2 | . . . . 1 1 . . Known Exits Taken 2 | . 1 . . 1 . . . Unknown Exits Taken 3 | 1 . 1 1 . . . . Scrap Searched 4 | . . . 4 . . . . Spaces Dug 116 | . . 76 19 21 . . . Terrain Destroyed 619 | . . 207 175 118 43 76 . Melee 23 | . . . 2 21 . . . Projectile . | . . . . . . . . AOE 596 | . . 207 173 97 43 76 . Terrain Rammed . | . . . . . . . . Walls Destroyed . | . . . . . . . . Machines Disabled . | . . . . . . . . Actions | -11 -10 -10 -10 -8 -7 -7 -7 --------- Run | Yrd Mat Min Sub Mat Fac Was Fac Total 6337 | 61 657 1959 951 1759 328 229 393 Wait 243 | . 23 51 12 139 11 7 . Move 5398 | 35 534 1843 903 1234 284 202 363 Hop . | . . . . . . . . Pick Up 82 | 4 21 3 5 38 2 1 8 Fast Attach 34 | 6 1 3 1 19 1 2 1 Attach 47 | . 4 2 5 29 2 3 2 Detach 9 | . . 1 1 5 1 . 1 Swap 36 | . 6 9 1 16 3 1 . Drop 70 | . 10 10 . 40 2 4 4 Fire 280 | 16 58 35 16 134 12 9 . Melee 123 | . . . 7 103 10 . 3 Ram 13 | . . 2 . . . . 11 Kick . | . . . . . . . . Crush 2 | . . . . 2 . . . Escape Stasis . | . . . . . . . . Rewire . | . . . . . . . . Trap . | . . . . . . . . Miscellaneous . | . . . . . . . . Route ------- -11/Scrapyard -10/Materials (discovered 4 exits: *Mat x3 / *Min) -10/Mines (discovered 3 exits: *Mat x2 / *Sub) -10/Subcaves -8/Materials (discovered 3 exits: *Fac x3) -7/Factory -7/Waste -7/Factory (discovered 1 exit: [*Fac]) History --------- Turn | Location | Event 5 | -11/Scrapyard | Discovered new exit (range 15) 99 | -11/Scrapyard | Entered Materials 302 | -10/Materials | Build established: Mutant 309 | -10/Materials | Discovered new exit (range 10) 389 | -10/Materials | Discovered new exit (range 10) 998 | -10/Materials | Discovered new exit (range 10) 1029 | -10/Materials | Identified exit to Materials 1096 | -10/Materials | Identified exit to Mines 1227 | -10/Materials | Discovered exit to Materials (range 6) 1267 | -10/Materials | Entered Mines 1348 | -10/Mines | Assembled infested the area 1353 | -10/Mines | Assisted by a Guerilla fighting off Assembled 1719 | -10/Mines | Discovered exit to Materials (range 11) 1921 | -10/Mines | Assisted by bots powering up and referring to "LRC-V3" 2012 | -10/Mines | Discovered exit to Materials (range 16) 2013 | -10/Mines | Learned Materials terminal intel 2427 | -10/Mines | Discovered new exit (range 11) 3374 | -10/Mines | Entered Subcaves 3374 | -10/Subcaves | Accompanied by 2 allies 3547 | -10/Subcaves | Learned Materials garrison access intel 3586 | -10/Subcaves | Ambushed by Subdwellers from Twisted Machinery 3604 | -10/Subcaves | Ambushed by Subdweller buried in earth 3604 | -10/Subcaves | Ambushed by Subdweller buried in earth 3651 | -10/Subcaves | Destroyed 8 combat bots 3678 | -10/Subcaves | Crushed by falling debris 3678 | -10/Subcaves | Core integrity fell below 50% 3721 | -10/Subcaves | Shifting Twisted Machinery released Sub. Power Source 3724 | -10/Subcaves | Lost 4 parts (2n1u1w) 3737 | -10/Subcaves | Shifting Twisted Machinery released Sub. Optics 4771 | -10/Subcaves | Visited 4L-MR0's lab 4809 | -10/Subcaves | Found Power Bank 4904 | -10/Subcaves | Discovered new exit (range 9) 4905 | -10/Subcaves | Shifting Twisted Machinery released Riot Gun 4905 | -10/Subcaves | Shifting Twisted Machinery released Flamer 4919 | -10/Subcaves | Entered Materials 4919 | -8/Materials | Evolved 4 slots: Utility x3, Weapon x1 4920 | -8/Materials | Loaded intel: 12 terminal locations 4921 | -8/Materials | Loaded intel: 1 garrison access location 5462 | -8/Materials | Build established: Hacker-Mutant 5619 | -8/Materials | Discovered new exit (range 8) 6613 | -8/Materials | Core integrity fell below 50% 6753 | -8/Materials | Lost 6 parts (1p2n2u1w) 6816 | -8/Materials | Core integrity fell below 20% 6924 | -8/Materials | Discovered new exit (range 9) 6957 | -8/Materials | Identified exit to Factory 7185 | -8/Materials | Build established: Gunner 7697 | -8/Materials | Discovered exit to Factory (range 10) 7719 | -8/Materials | First assault squad dispatched 7819 | -8/Materials | Sterilization system engaged 7819 | -8/Materials | Non-combat units ordered to evacuate 7825 | -8/Materials | Destroyed 7 combat bots 7919 | -8/Materials | Combat units ordered to evacuate 7935 | -8/Materials | Entered Factory 7935 | -7/Factory | Evolved 2 slots: Propulsion x1, Utility x1 8133 | -7/Factory | Build established: Mutant 8467 | -7/Factory | Sucked down chute 8467 | -7/Factory | Entered Waste 8476 | -7/Waste | Found Imp. Powered Armor 8482 | -7/Waste | EMP discharged 8498 | -7/Waste | Spotted C-40 Crusher 8518 | -7/Waste | Spotted C-40 Crusher 8520 | -7/Waste | Spotted C-40 Crusher 8520 | -7/Waste | Spotted C-40 Crusher 8521 | -7/Waste | Spotted C-40 Crusher 8560 | -7/Waste | Spotted C-40 Crusher 8582 | -7/Waste | EMP discharged 8582 | -7/Waste | System corruption reached 10% 8593 | -7/Waste | Destroyed C-40 Crusher 8595 | -7/Waste | Crushed by Compactor (0 parts destroyed, 1 dropped) 8603 | -7/Waste | Crushed by Compactor (0 parts destroyed, 1 dropped) 8610 | -7/Waste | Crushed by Compactor (0 parts destroyed, 1 dropped) 8614 | -7/Waste | Crushed by Compactor (0 parts destroyed, 1 dropped) 8619 | -7/Waste | Crushed by Compactor (0 parts destroyed, 1 dropped) 8622 | -7/Waste | Crushed by Compactor (1 part destroyed, 2 dropped) 8623 | -7/Waste | Crushed by Compactor (1 part destroyed, 2 dropped) 8626 | -7/Waste | Crushed by Compactor (1 part destroyed) 8657 | -7/Waste | Lost 4 parts (2n1u1w) 8671 | -7/Waste | Discovered new exit (range 12) 8682 | -7/Waste | EMP discharged 8696 | -7/Waste | Entered Factory 8715 | -7/Factory | Discovered new exit (range 11) 8894 | -7/Factory | Core integrity fell below 50% 8907 | -7/Factory | Core integrity fell below 20% 8912 | -7/Factory | Destroyed by S-27 Virus via exploding Nuclear Reactor Last Messages --------------- 08887_ Slammed into T-07 Excavator. 08887_ T-07 Excavator knocked back. 08888_ Slammed into T-07 Excavator. 08889_ Imp. Light Armor Plating destroyed. 08891_ Slammed into T-07 Excavator. 08894_ System corrupted: Matter fused (-8). 08894_ Slammed into S-27 Virus. 08894_ Destabilizing: System corrupted (+2). 08895_ Slammed into S-27 Virus. 08901_ S-27 Virus destroyed. 08902_ Acquired 28 matter. 08906_ S-27 Virus suffers critical hit (Smash). 08906_ Destroyed Autogun. 08906_ Destroyed VTOL Module. 08906_ S-27 Virus system corrupted by crushing effect. 08906_ Lgt. Nuclear Core fried. 08906_ S-27 Virus destroyed. 08912_ Nuclear Reactor explodes. 08912_ T-07 Excavator destroyed. 08912_ Nuclear Reactor explodes. Map ----- +----------------------------------------------------+ | ???????????????????# """ """ + #???# | | ???????????????????# """ """ # ######## #???# # | | ???????????????????# # #?######+##??# # | | ???????????????????# """ """ # #?# #??# # | | ???????????????????# ! """ """ /# #?# / #??# # | | ???????????????????# """ """ # #?# #??# # | | ???????????????????# # #?# ! #??# # | | ???????????????????# # #?# #??# # | | ??????????###+############+###### ### / #??# # | | ????????? # ####+# | | ????????? # " " " # | | ????????? + " " " # """ | | ????????? # " " " # """ | | ????????? ^ """ """ # " " " # """ | | ??????????## ###### #### """ """ # " " " # """ | | ????????????????###/##?# """ """ # " " " # """ | | ???????????????? ?# # " " " # """ | | ????????????????" """ # """ """ # " " " # """ | | ???????????????"" """ # """ """ # " " "?# | | ????????????????"" """ + """ """ # ?# | | ???????????????""" # w ####????# | | ?????????????? """ # """ """ #???????# | | ????????????? ?#=s """ """ ###########+## | | ?????????????#########?# """ """ | | ???????????????????????#s | | ???????????????????????#^@ """ | | ???????????????????????#[ """ | | ???????????????????????# %* """ | | ???????????????????????#= ########### T# | | ???????????????????????# """ #?????????#### | | ???????????????????????# """ #????????????# | | ???????????????????????# """ #????????????# | | ???????????????????????# +????????????# | | ???????????????????????/ """ """ #????????????# | | ?????????????????????? # """ """ #????????????# | | ?????????????????????? # """ "?" ?????????????# | | ?????????????????????#?# ??? ?????????????# | | ??????????????????????? !! ????" ?????????????# | | ??????????????????????? !! ????? ?????????????# | | ??????????????????????? !! ????????????????????# | | ?????????????????????? ????????????????????# | | ?????????????????????? ????????????????????# | | ??????????????????????#####+#????????????????????? | | ?????????????????????????????????????????????????? | | ?????????????????????????????????????????????????? | | ?????????????????????????????????????????????????? | | ?????????????????????????????????????????????????? | | ?????????????????????????????????????????????????? | | ?????????????????????????????????????????????????? | | ?????????????????????????????????????????????????? | +----------------------------------------------------+ Best States ------------- Heat Dissipation 45 Energy Generation 18 Energy Capacity 275 Matter Stores 300 Matter Capacity 300 Sight Range 16 Terrain Scan Density 10 ECM Strength 1 Armor Coverage 1200 Resistance: TH 10 Evasion (%) 50 Targeting Accuracy 8 Recoil Reduction 3 Defensive Hacking 21 Item Schematics ----------------- Hvy. Armor Plating | -8/Materials | Scanalyzed Adv. ECM Suite | -8/Materials | Scanalyzed Imp. Heat Sink | -8/Materials | Scanalyzed Robot Schematics ------------------ None Fabricated ------------ Nothing Alien Tech Used ----------------- None Achievements -------------- None Challenges ------------ None Game ------ Seed SchematicGravmagCompressor Manual? 0 Play Time 01:24:39 Cumulative 77.6 hours Start 2024.04.29 @ 01:37:26 End 2024.04.29 @ 18:06:25 Sessions 3 Manual Loads 0 Difficulty Rogue Special Mode None Game No. 86 Rogue 86 Adventurer 0 Explorer 0 Win Type - Total 0 Types 0/0/0/0/0/0/0/0/0 Lore% 37 Gallery% 52 Achievement% 37 Wizard Run 0 Options --------- Layout 0 ASCII 0 Keyboard 0 Movement Mouse Keybinds 0 Fullscreen 2 Font 24/Smallcaps Map View 183x50 Zoom Use 0% Tactical HUD 1 Map Filters NONE Filters NONE Steam 0 RUN: 74d32102-66f0-4ef4-bd8a-4323a876e58f